[Event "Kwalificatie NJK B Groningen"]
[Site "Hoogkerk, Netherlands"]
[Date "2023.02.18"]
[Round "4.8"]
[White "Koppenens, Oscar"]
[Black "Knippenberg, Hidde"]
[Result "0-1"]
[TimeControl "55 min. + 10 sec./zet"]
[WhiteElo "1572"]
[BlackElo "1721"]

1. e4 {[%clk 00:55:17]} c5 {[%clk 00:55:17]} 2. c3 {[%clk 00:55:24]} g6 {[%clk
00:55:24]} 3. d4 {[%clk 00:55:28]} {[%emt 00:00:12]} cxd4 {[%clk 00:55:31]}
{[%emt 00:00:29]} 4. cxd4 {[%clk 00:55:34]} Bg7 {[%clk 00:55:37]} 5. Nc3 {[%clk
00:55:25]} {[%emt 00:00:05]} Nc6 {[%clk 00:55:42]} 6. Be3 {[%clk 00:55:29]}
{[%emt 00:00:05]} Nf6 {[%clk 00:55:47]} {[%emt 00:00:24]} 7. Be2 {[%clk
00:55:18]} O-O {[%clk 00:55:53]} 8. Nf3 {[%clk 00:55:25]} {[%emt 00:00:17]} d5
{[%clk 00:55:55]} 9. e5 {[%clk 00:55:30]} Ne8 {[%clk 00:54:24]} {[%emt
00:02:14]} 10. Nd2 {[%clk 00:55:26]} Nc7 {[%clk 00:53:39]} {[%emt 00:00:35]} 11.
O-O {[%clk 00:53:29]} {[%emt 00:02:24]} a5 {[%clk 00:51:17]} {[%emt 00:02:15]}
12. a3 {[%clk 00:52:07]} {[%emt 00:01:45]} Ne6 {[%clk 00:49:30]} {[%emt
00:01:43]} 13. Nb3 {[%clk 00:50:30]} {[%emt 00:02:35]} a4 {[%clk 00:49:32]} 14.
Nc1 {[%clk 00:50:34]} Bd7 {[%clk 00:49:37]} 15. Nxd5 {[%clk 00:50:22]} f6
{[%clk 00:45:54]} {[%emt 00:03:46]} 16. f4 {[%clk 00:48:35]} {[%emt 00:02:01]}
Rb8 {[%clk 00:35:04]} {[%emt 00:11:05]} 17. Na2 {[%clk 00:47:43]} {[%emt
00:01:23]} Nexd4 {[%clk 00:34:04]} {[%emt 00:00:40]} 18. Bxd4 {[%clk 00:46:05]}
{[%emt 00:02:14]} Be6 {[%clk 00:34:10]} 19. Nxe7+ {[%clk 00:45:12]} {[%emt
00:01:09]} Qxe7 {[%clk 00:34:04]} 20. exf6 {[%clk 00:45:06]} {[%emt 00:00:11]}
Bxf6 {[%clk 00:34:08]} {[%emt 00:00:04]} 21. Bxf6 {[%clk 00:45:09]} {[%emt
00:00:42]} Qxf6 {[%clk 00:33:19]} {[%emt 00:00:30]} 22. Qxa4 {[%clk 00:44:25]}
{[%emt 00:01:06]} Qxb2 {[%clk 00:33:15]} {[%emt 00:00:43]} 23. Qb5 {[%clk
00:41:48]} {[%emt 00:02:32]} Qxa3 {[%clk 00:30:44]} {[%emt 00:02:11]} 24. Bc4
{[%clk 00:41:45]} {[%emt 00:00:08]} Qe3+ {[%clk 00:30:12]} {[%emt 00:01:16]} 25.
Kh1 {[%clk 00:41:40]} Bxc4 {[%clk 00:30:01]} {[%emt 00:00:31]} 26. Qxc4+ {[%clk
00:41:45]} Kh8 {[%clk 00:30:05]} 27. Nc3 {[%clk 00:41:18]} {[%emt 00:00:52]}
Qd4 {[%clk 00:29:39]} 28. Qb3 {[%clk 00:39:10]} {[%emt 00:02:48]} Rxf4 {[%emt
00:04:34]} 29. Rfd1 {[%clk 00:38:14]} Qb4 {[%clk 00:24:17]} {[%emt 00:01:43]}
30. Qc2 {[%clk 00:36:41]} {[%emt 00:02:45]} Rc4 {[%clk 00:21:31]} {[%emt
00:02:06]} 31. Rd3 {[%clk 00:35:08]} {[%emt 00:02:21]} Ne5 {[%clk 00:20:51]}
{[%emt 00:00:14]} 32. Re3 {[%clk 00:33:59]} {[%emt 00:01:34]} Rbc8 {[%clk
00:20:53]} 33. Rxe5 {[%clk 00:32:36]} {[%emt 00:01:12]} Qxc3 {[%clk 00:17:57]}
{[%emt 00:03:51]} 34. Qxc3 {[%clk 00:32:17]} Rxc3 {[%clk 00:18:06]} 35. Ree1
{[%clk 00:32:20]} b5 {[%clk 00:17:47]} {[%emt 00:00:47]} 36. h3 {[%clk
00:32:09]} b4 {[%clk 00:17:52]} {[%emt 00:00:05]} 37. Kh2 {[%clk 00:32:09]}
{[%emt 00:01:17]} b3 {[%clk 00:17:44]} 38. Ra7 {[%clk 00:32:11]} b2 {[%clk
00:17:14]} 39. Rb1 {[%clk 00:31:41]} {[%emt 00:00:48]} Rb8 {[%clk 00:16:24]}
{[%emt 00:00:46]} 40. Ra2 {[%clk 00:31:45]} {[%emt 00:00:31]} Rc2 {[%clk
00:16:03]} {[%emt 00:00:19]} 41. Kg3 {[%clk 00:31:28]} {[%emt 00:00:37]} Rb7
{[%clk 00:16:07]} 42. Kf3 {[%clk 00:31:21]} {[%emt 00:00:17]} Kg7 {[%clk
00:16:12]} 43. g4 {[%clk 00:31:09]} {[%emt 00:00:40]} Kh6 {[%clk 00:14:20]}
{[%emt 00:02:45]} 44. h4 {[%clk 00:29:34]} {[%emt 00:00:50]} Rb3+ {[%clk
00:14:21]} 45. Kf4 {[%clk 00:29:17]} {[%emt 00:01:20]} Rc4+ {[%clk 00:14:20]}
46. Ke5 {[%clk 00:29:20]} Rb5+ {[%clk 00:13:34]} {[%emt 00:01:00]} 47. Kd6
{[%clk 00:28:45]} Rxg4 {[%clk 00:13:38]} {[%emt 00:00:05]} 48. Rbxb2 {[%clk
00:28:52]} {[%emt 00:00:17]} Rxb2 {[%clk 00:13:42]} 49. Rxb2 {[%clk 00:28:58]}
Kh5 {[%clk 00:13:10]} {[%emt 00:01:41]} 50. Ke5 {[%clk 00:29:01]} Rxh4 {[%clk
00:12:46]} 51. Rg2 {[%clk 00:28:35]} {[%emt 00:00:15]} Kh6 {[%clk 00:11:30]}
{[%emt 00:02:27]} 52. Kf6 {[%clk 00:27:59]} Rf4+ {[%clk 00:11:35]} 53. Ke5
{[%clk 00:28:02]} Rf5+ {[%clk 00:11:41]} 54. Ke4 {[%clk 00:28:06]} {[%emt
00:00:10]} Kg7 {[%clk 00:11:42]} {[%emt 00:00:22]} 55. Ra2 {[%clk 00:28:11]} h5
{[%clk 00:11:29]} {[%emt 00:00:36]} 56. Ra3 {[%clk 00:28:05]} Rf6 {[%clk
00:11:15]} {[%emt 00:00:44]} 57. Rg3 {[%clk 00:27:20]} {[%emt 00:01:40]} Kh6
{[%clk 00:10:59]} 58. Ke5 {[%clk 00:27:14]} Rf1 {[%clk 00:11:00]} 59. Ra3
{[%clk 00:27:06]} h4 {[%clk 00:10:58]} {[%emt 00:00:50]} 60. Ke4 {[%clk
00:27:10]} Kh5 {[%clk 00:10:41]} 61. Ra5+ {[%clk 00:25:46]} {[%emt 00:01:42]}
Kg4 {[%clk 00:10:34]} 62. Ke3 {[%clk 00:25:47]} {[%emt 00:00:42]} g5 {[%clk
00:09:41]} {[%emt 00:00:50]} 63. Ke2 {[%clk 00:25:23]} {[%emt 00:00:13]} Rf5
{[%clk 00:09:33]} {[%emt 00:00:38]} 64. Ra3 {[%clk 00:25:21]} h3 {[%clk
00:09:24]} {[%emt 00:00:54]} 65. Ra8 {[%clk 00:24:36]} {[%emt 00:00:12]} h2
{[%clk 00:09:10]} {[%emt 00:00:41]} 0-1

[Event "Kwalificatie NJK B Groningen"]
[Site "Hoogkerk, Netherlands"]
[Date "2023.02.18"]
[Round "4.9"]
[White "Waersegers, Brent"]
[Black "Fallaux, Storm"]
[Result "0-1"]
[TimeControl "55 min. + 10 sec./zet"]
[WhiteElo "1702"]
[BlackElo "1643"]

1. e4 {[%emt 00:03:31]} c5 2. Nf3 {[%emt 00:00:14]} d6 3. d4 {[%emt 00:00:36]}
cxd4 {[%emt 00:00:50]} 4. Nxd4 Nf6 5. Nc3 a6 {[%emt 00:00:06]} 6. Be2 {[%emt
00:00:42]} e5 {[%emt 00:00:49]} 7. Nb3 Be6 {[%emt 00:00:52]} 8. O-O {[%emt
00:00:17]} Be7 9. Be3 {[%emt 00:02:08]} O-O {[%emt 00:01:44]} 10. f4 {[%emt
00:00:24]} Nc6 {[%emt 00:01:03]} 11. f5 {[%emt 00:01:01]} Bxb3 12. axb3 {[%emt
00:01:28]} b5 {[%emt 00:00:53]} 13. Rf3 {[%emt 00:06:45]} b4 {[%emt 00:02:31]}
14. Na4 Nxe4 15. Qd5 {[%emt 00:00:48]} Nd4 {[%emt 00:03:45]} 16. Bxd4 {[%emt
00:00:51]} Ng5 17. Rd3 {[%emt 00:01:59]} exd4 {[%emt 00:01:18]} 18. h4 {[%emt
00:00:34]} Rc8 {[%emt 00:00:31]} 19. c4 {[%emt 00:03:16]} dxc3 {[%emt
00:00:32]} 20. bxc3 bxc3 {[%emt 00:00:31]} 21. Nxc3 Rxc3 {[%emt 00:03:23]} 22.
Rxc3 Bf6 23. hxg5 Bxc3 24. Rxa6 Qxg5 {[%emt 00:00:30]} 25. Rxd6 {[%emt
00:01:53]} Qe3+ {[%emt 00:00:32]} 26. Kf1 Re8 {[%emt 00:08:37]} 27. Qd3 {[%emt
00:03:06]} Qf4+ {[%emt 00:00:48]} 28. Kg1 Bb4 {[%emt 00:11:16]} 29. Rc6 {[%emt
00:03:49]} Bd2 {[%emt 00:04:28]} 30. Qf3 {[%emt 00:00:31]} Qd4+ {[%emt
00:02:09]} 31. Kh1 {[%emt 00:01:59]} Qh4+ {[%emt 00:01:57]} 32. Kg1 {[%emt
00:01:05]} Qe1+ {[%emt 00:02:11]} 33. Kh2 {[%emt 00:01:23]} Qh4+ {[%emt
00:00:31]} 34. Kg1 {[%emt 00:02:38]} h6 35. g3 {[%emt 00:04:15]} Qd4+ {[%emt
00:00:51]} 36. Kg2 {[%emt 00:01:48]} Re3 {[%emt 00:01:07]} 37. Qf2 {[%emt
00:01:00]} Qe4+ {[%emt 00:01:30]} 38. Bf3 Qxf5 39. b4 {[%emt 00:01:57]} Qd3 40.
b5 {[%emt 00:01:07]} Be1 41. Rc8+ {[%emt 00:02:53]} Kh7 42. Qc2 Rxf3 43. Qxd3+
{[%emt 00:00:08]} Rxd3 {[%emt 00:00:05]} 44. b6 {[%emt 00:00:51]} Rb3 45. Rb8
Ba5 {[%emt 00:00:27]} 0-1

[Event "Kwalificatie NJK B Groningen"]
[Site "Hoogkerk, Netherlands"]
[Date "2023.02.19"]
[Round "5.1"]
[White "Terlouw, Wouter"]
[Black "Ritzerveld, Noah"]
[Result "0-1"]
[TimeControl "55 min. + 10 sec./zet"]
[WhiteElo "1925"]
[BlackElo "1868"]

1. d4 {[%clk 00:55:18]} d5 {[%clk 00:55:18]} 2. c4 {[%clk 00:55:18]} c6 {[%clk
00:55:18]} 3. Nc3 {[%clk 00:55:18]} Nf6 {[%clk 00:55:18]} 4. Nb1 {[%clk
00:55:24]} {[%emt 14:40:20]} Ng8 5. Nc3 {[%clk 00:55:29]} Nf6 {[%emt 00:00:51]}
6. Nf3 dxc4 7. a4 Bf5 8. Ne5 {[%clk 00:55:16]} Nbd7 9. Nxc4 Qc7 10. e3 {[%emt
00:01:38]} e5 {[%emt 00:01:21]} 11. Nxe5 {[%clk 00:53:27]} {[%emt 00:00:57]}
Nxe5 {[%clk 00:51:44]} {[%emt 00:00:14]} 12. dxe5 Qxe5 {[%clk 00:51:27]} {[%emt
00:00:21]} 13. Qb3 {[%emt 00:11:34]} Bd6 {[%clk 00:35:09]} {[%emt 00:06:48]} 14.
Qxb7 {[%clk 00:43:37]} {[%emt 00:08:49]} O-O {[%emt 00:00:22]} 15. Bc4 {[%emt
00:03:04]} Ne4 {[%clk 00:24:03]} {[%emt 00:10:48]} 16. Bxf7+ {[%clk 00:32:29]}
{[%emt 00:08:08]} Kh8 {[%clk 00:23:22]} {[%emt 00:00:53]} 17. Nxe4 {[%clk
00:30:51]} {[%emt 00:01:50]} Bxe4 {[%clk 00:22:49]} {[%emt 00:01:08]} 18. f3
{[%clk 00:30:19]} {[%emt 00:00:36]} Rab8 {[%clk 00:15:59]} {[%emt 00:06:56]} 19.
Qa6 {[%clk 00:28:26]} {[%emt 00:01:39]} Bb4+ {[%clk 00:14:37]} {[%emt
00:02:25]} 20. Ke2 {[%clk 00:28:05]} Rxf7 {[%clk 00:13:43]} {[%emt 00:00:48]}
21. fxe4 {[%clk 00:25:13]} {[%emt 00:03:46]} Rd8 {[%clk 00:13:22]} 22. Rf1
{[%clk 00:24:03]} {[%emt 00:01:06]} Qh5+ {[%clk 00:13:27]} {[%emt 00:00:39]} 23.
Rf3 {[%clk 00:23:49]} {[%emt 00:00:10]} Rxf3 {[%clk 00:13:32]} 24. h3 {[%clk
00:20:16]} {[%emt 00:03:29]} Rf6+ {[%clk 00:12:55]} {[%emt 00:00:47]} 25. g4
{[%clk 00:19:58]} {[%emt 00:00:28]} Qxh3 {[%clk 00:12:58]} {[%emt 00:00:14]}
0-1

[Event "Kwalificatie NJK B Groningen"]
[Site "Hoogkerk, Netherlands"]
[Date "2023.02.19"]
[Round "5.2"]
[White "Krylov, Philippe"]
[Black "Niemeijer, LÃ©on"]
[Result "0-1"]
[TimeControl "55 min. + 10 sec./zet"]
[WhiteElo "1862"]
[BlackElo "1860"]

1. d4 {[%clk 00:55:17]} {[%emt 00:00:03]} Nf6 {[%clk 00:55:17]} {[%emt
00:00:03]} 2. c4 {[%clk 00:55:23]} {[%emt 00:00:04]} g6 {[%clk 00:55:22]}
{[%emt 00:00:04]} 3. Nc3 {[%clk 00:55:31]} {[%emt 00:00:03]} Bg7 {[%clk
00:55:28]} {[%emt 00:00:04]} 4. e4 {[%clk 00:55:38]} {[%emt 00:00:02]} d6
{[%clk 00:55:37]} {[%emt 00:00:02]} 5. f3 {[%clk 00:55:44]} {[%emt 00:00:04]}
O-O {[%clk 00:55:36]} {[%emt 00:00:10]} 6. Bg5 {[%clk 00:55:53]} {[%emt
00:00:02]} c5 {[%clk 00:55:34]} {[%emt 00:00:12]} 7. d5 {[%clk 00:55:59]}
{[%emt 00:00:04]} Qa5 {[%clk 00:54:09]} {[%emt 00:01:35]} 8. Qd2 {[%clk
00:53:42]} {[%emt 00:02:27]} a6 {[%clk 00:50:52]} {[%emt 00:03:28]} 9. a4
{[%clk 00:49:12]} {[%emt 00:04:39]} e6 {[%clk 00:47:32]} {[%emt 00:03:29]} 10.
Ra3 {[%clk 00:45:29]} {[%emt 00:03:54]} exd5 {[%clk 00:44:37]} {[%emt
00:03:04]} 11. cxd5 {[%clk 00:44:53]} {[%emt 00:00:47]} Re8 {[%clk 00:41:16]}
{[%emt 00:03:31]} 12. Be2 {[%clk 00:37:22]} {[%emt 00:07:40]} Nfd7 {[%clk
00:36:29]} {[%emt 00:04:57]} 13. Nh3 {[%clk 00:34:46]} {[%emt 00:02:46]} Nb6
{[%clk 00:35:59]} {[%emt 00:00:40]} 14. Nf2 {[%clk 00:33:55]} {[%emt 00:01:01]}
Bd7 {[%clk 00:34:23]} {[%emt 00:01:46]} 15. h4 {[%clk 00:31:05]} {[%emt
00:03:00]} Qb4 {[%clk 00:24:34]} {[%emt 00:09:59]} 16. a5 {[%clk 00:25:27]}
{[%emt 00:05:48]} Nc4 {[%clk 00:11:36]} {[%emt 00:13:09]} 17. Bxc4 {[%clk
00:24:53]} {[%emt 00:00:45]} Qxc4 {[%clk 00:11:41]} {[%emt 00:00:04]} 18. Bf4
{[%clk 00:20:36]} {[%emt 00:04:26]} Be5 {[%clk 00:07:57]} {[%emt 00:03:54]} 19.
Bxe5 {[%clk 00:18:15]} {[%emt 00:02:31]} Rxe5 {[%clk 00:06:57]} {[%emt
00:01:11]} 20. f4 {[%clk 00:07:06]} {[%emt 00:11:20]} Re7 {[%clk 00:05:20]}
{[%emt 00:01:47]} 21. g4 {[%clk 00:05:13]} {[%emt 00:02:02]} f5 {[%clk
00:04:14]} {[%emt 00:01:16]} 22. gxf5 {[%clk 00:04:44]} {[%emt 00:00:39]} gxf5
{[%clk 00:04:02]} {[%emt 00:00:22]} 23. Rg1+ {[%clk 00:04:28]} {[%emt
00:00:26]} Kh8 {[%clk 00:03:35]} {[%emt 00:00:37]} 24. Ne2 {[%clk 00:04:07]}
{[%emt 00:00:31]} Bb5 {[%clk 00:03:02]} {[%emt 00:00:43]} 25. Rag3 {[%clk
00:02:06]} {[%emt 00:02:11]} Nd7 {[%clk 00:03:03]} {[%emt 00:00:09]} 26. Kf1
{[%clk 00:01:49]} {[%emt 00:00:26]} Qxe2+ {[%clk 00:02:32]} {[%emt 00:00:42]}
27. Qxe2 {[%clk 00:01:52]} {[%emt 00:00:08]} Bxe2+ {[%clk 00:02:40]} {[%emt
00:00:01]} 28. Kxe2 {[%clk 00:02:01]} Nf6 {[%clk 00:02:29]} {[%emt 00:00:21]}
29. e5 {[%clk 00:02:06]} {[%emt 00:00:05]} dxe5 {[%clk 00:02:33]} {[%emt
00:00:07]} 30. d6 {[%clk 00:02:15]} {[%emt 00:00:01]} Re6 {[%clk 00:02:21]}
{[%emt 00:00:21]} 31. fxe5 {[%clk 00:02:20]} {[%emt 00:00:05]} Rxe5+ {[%clk
00:02:28]} {[%emt 00:00:03]} 32. Re3 {[%clk 00:02:29]} Rae8 {[%clk 00:02:31]}
{[%emt 00:00:07]} 33. Rgg3 {[%clk 00:02:23]} {[%emt 00:00:16]} f4 {[%clk
00:02:27]} {[%emt 00:00:14]} 0-1

[Event "Kwalificatie NJK B Groningen"]
[Site "Hoogkerk, Netherlands"]
[Date "2023.02.19"]
[Round "5.3"]
[White "Kleibeuker, Mika"]
[Black "Van Foreest, Nanne"]
[Result "0-1"]
[TimeControl "55 min. + 10 sec./zet"]
[WhiteElo "1698"]
[BlackElo "1862"]

1. e4 {[%clk 00:55:17]} {[%emt 00:00:03]} c5 {[%clk 00:55:16]} {[%emt
00:00:04]} 2. c3 {[%clk 00:55:24]} {[%emt 00:00:04]} Nf6 {[%clk 00:55:16]}
{[%emt 00:00:10]} 3. e5 {[%clk 00:55:30]} {[%emt 00:00:04]} Nd5 {[%clk
00:55:23]} {[%emt 00:00:03]} 4. d4 {[%clk 00:55:37]} {[%emt 00:00:03]} e6
{[%clk 00:55:27]} {[%emt 00:00:06]} 5. Bc4 {[%clk 00:54:38]} {[%emt 00:01:08]}
cxd4 {[%clk 00:55:32]} {[%emt 00:00:05]} 6. cxd4 {[%clk 00:54:42]} {[%emt
00:00:06]} Nc6 {[%clk 00:55:41]} {[%emt 00:00:01]} 7. Nf3 {[%clk 00:54:17]}
{[%emt 00:00:35]} Be7 {[%clk 00:55:40]} {[%emt 00:00:08]} 8. O-O {[%clk
00:54:15]} {[%emt 00:00:15]} d6 {[%clk 00:55:45]} {[%emt 00:00:06]} 9. Qe2
{[%clk 00:53:57]} {[%emt 00:00:28]} O-O {[%clk 00:55:48]} {[%emt 00:00:07]} 10.
Rd1 {[%clk 00:53:37]} {[%emt 00:00:29]} Na5 {[%clk 00:55:55]} {[%emt 00:00:04]}
11. Bd3 {[%clk 00:50:49]} {[%emt 00:02:57]} Nb4 {[%clk 00:56:03]} {[%emt
00:00:02]} 12. Nc3 {[%clk 00:50:19]} {[%emt 00:00:40]} Nxd3 {[%clk 00:55:57]}
{[%emt 00:00:15]} 13. Rxd3 {[%clk 00:49:43]} {[%emt 00:00:48]} b6 {[%clk
00:55:54]} {[%emt 00:00:12]} 14. b4 {[%clk 00:37:03]} {[%emt 00:12:50]} Nc4
{[%clk 00:49:21]} {[%emt 00:06:44]} 15. Qe4 {[%clk 00:34:49]} {[%emt 00:02:23]}
d5 {[%clk 00:48:06]} {[%emt 00:01:25]} 16. Qg4 {[%clk 00:34:53]} {[%emt
00:00:07]} f5 {[%clk 00:46:53]} {[%emt 00:01:23]} 17. Qh5 {[%clk 00:25:38]}
{[%emt 00:09:24]} Qe8 {[%clk 00:42:08]} {[%emt 00:04:55]} 18. Qxe8 {[%clk
00:25:10]} {[%emt 00:00:38]} Rxe8 {[%clk 00:42:17]} {[%emt 00:00:02]} 19. a3
{[%clk 00:25:00]} {[%emt 00:00:19]} Bd7 {[%clk 00:40:39]} {[%emt 00:01:48]} 20.
Bg5 {[%clk 00:21:49]} {[%emt 00:03:20]} Bf8 {[%clk 00:39:06]} {[%emt 00:01:44]}
21. Rdd1 {[%clk 00:20:24]} {[%emt 00:01:35]} a5 {[%clk 00:37:51]} {[%emt
00:01:26]} 22. bxa5 {[%clk 00:19:13]} {[%emt 00:01:21]} Rxa5 {[%clk 00:36:08]}
{[%emt 00:01:52]} 23. a4 {[%clk 00:18:49]} {[%emt 00:00:34]} Bb4 {[%clk
00:35:47]} {[%emt 00:00:32]} 24. Na2 {[%clk 00:17:43]} {[%emt 00:01:16]} Ba3
{[%clk 00:35:12]} {[%emt 00:00:44]} 25. Bc1 {[%clk 00:15:57]} {[%emt 00:01:55]}
Bxc1 {[%clk 00:34:48]} {[%emt 00:00:36]} 26. Rdxc1 {[%clk 00:15:45]} {[%emt
00:00:21]} Bxa4 {[%clk 00:33:22]} {[%emt 00:01:35]} 27. Nb4 {[%clk 00:13:38]}
{[%emt 00:02:18]} Bd7 {[%clk 00:32:25]} {[%emt 00:01:06]} 28. Rxa5 {[%clk
00:13:06]} {[%emt 00:00:43]} bxa5 {[%clk 00:32:34]} {[%emt 00:00:01]} 29. Na6
{[%clk 00:13:01]} {[%emt 00:00:15]} h6 {[%clk 00:27:24]} {[%emt 00:05:21]} 30.
Nc5 {[%clk 00:12:58]} {[%emt 00:00:12]} Bc6 {[%clk 00:27:30]} {[%emt 00:00:04]}
31. Kf1 {[%clk 00:12:06]} {[%emt 00:01:02]} Kf7 {[%clk 00:27:00]} {[%emt
00:00:40]} 32. Ke1 {[%clk 00:09:39]} {[%emt 00:02:36]} Rb8 {[%clk 00:26:55]}
{[%emt 00:00:15]} 33. Nd2 {[%clk 00:09:23]} {[%emt 00:00:26]} Nb2 {[%clk
00:24:58]} {[%emt 00:02:08]} 34. Rc2 {[%clk 00:07:28]} {[%emt 00:02:05]} a4
{[%clk 00:21:56]} {[%emt 00:03:12]} 35. Nxe6 {[%clk 00:03:57]} {[%emt
00:03:40]} Nd3+ {[%clk 00:22:01]} {[%emt 00:00:06]} 36. Kd1 {[%clk 00:04:06]}
{[%emt 00:00:01]} Nb4 {[%clk 00:21:39]} {[%emt 00:00:31]} 37. Rxc6 {[%clk
00:03:29]} {[%emt 00:00:48]} Nxc6 {[%clk 00:21:42]} {[%emt 00:00:07]} 38. Nc7
{[%clk 00:02:20]} {[%emt 00:01:19]} a3 {[%clk 00:21:36]} {[%emt 00:00:17]} 39.
e6+ {[%clk 00:02:05]} {[%emt 00:00:25]} Kg8 {[%clk 00:21:35]} {[%emt 00:00:10]}
0-1